bitfinex-derivatives/quotes_ETHF0:USTF0_20250926
["timestamp","ask_amount","ask_price","bid_price","bid_amount"]
[1758917874584,0.8141,4023.3,4023.2,0.47442562]
[1758917876590,0.8141,4023.3,4023.2,0.00182562]
[1758917876786,0.8141,4022.8,4022.7,3.2078]
[1758917877089,1.26126,4022.3,4022.2,3.2078]
[1758917877280,2.69052382,4022.3,4022.2,3.2078]
[1758917877677,2.69052382,4022.3,4022.2,0.00194981]
[1758917880591,0.8141,4022.3,4022.2,0.82114981]
[1758917881185,0.8141,4022.3,4022.2,0.47454981]
[1758917885194,1.26126,4022.3,4022.2,0.00194981]
[1758917886594,1.26126,4022.3,4022.2,0.23924981]
[1758917886790,0.8141,4022.3,4022.2,0.23924981]
[1758917886989,1.26126,4022.3,4022.2,0.83414981]
[1758917887592,1.26126,4022.3,4022.2,1.28131981]
[1758917887787,1.02246,4022.3,4022.2,0.83414981]
[1758917888699,1.26426,4022.3,4022.2,0.83414981]
[1758917888883,2.69352382,4022.3,4022.2,0.46504981]
[1758917889086,2.69352382,4022.3,4022.2,0.00194981]
[1758917889386,1.27022,4021.8,4021.7,3.2078]
[1758917889592,2.69948382,4021.8,4021.7,3.2078]
[1758917889997,0.44728,4021.3,4021.2,3.2078]
[1758917890190,1.27028,4021.3,4021.2,4.14749]
[1758917890391,2.35048382,4021.8,4021.7,0.4642]
[1758917890695,0.92122,4021.8,4021.7,0.4642]
[1758917890894,1.27022,4021.8,4021.7,0.4642]
[1758917891502,0.5812,4021.8,4021.7,0.8333]
[1758917891690,0.1427,4022.0,4021.7,1.53453]
[1758917891891,1.02842,4021.9,4021.8,1.28052]
[1758917892090,4.57966,4022.6,4022.2,0.8333]
[1758917892091,1.27016,4022.3,4022.2,0.8333]
[1758917892594,1.27016,4022.3,4022.2,0.4642]
[1758917893102,0.823,4022.3,4022.2,1.25397]
[1758917893399,1.27016,4022.3,4022.2,0.8068]
[1758917893895,1.27016,4022.3,4022.2,0.4642]
[1758917894097,1.27016,4022.3,4022.2,0.91137]
[1758917894298,0.823,4022.3,4022.2,0.91137]
[1758917894500,1.27016,4022.3,4022.2,0.91137]
[1758917895092,1.27016,4022.3,4022.2,1.25397]
[1758917895305,1.27016,4022.3,4022.2,0.8068]
[1758917897000,1.27016,4022.3,4022.2,0.4642]
[1758917898301,1.81293881,4022.3,4022.2,0.4642]
[1758917898606,1.81293881,4022.3,4022.2,0.2384]
[1758917898905,1.81293888,4022.3,4022.2,0.2384]
[1758917900701,1.29752,4021.8,4021.7,3.2078]
[1758917900904,1.84156709,4021.8,4021.7,3.2078]
[1758917901500,1.84156709,4021.8,4021.7,3.4529]
[1758917901706,1.84156709,4021.8,4021.7,3.6784]
[1758917904505,1.84156709,4021.8,4021.7,3.4529]
[1758917904709,1.29754,4021.6,4021.5,0.254]
[1758917904906,1.39434709,4021.6,4021.5,0.4991]
[1758917905108,1.39434709,4021.6,4021.5,1.60345]
[1758917905410,1.84158709,4021.6,4021.5,1.60345]
[1758917905912,1.39434709,4021.6,4021.5,1.60345]
[1758917906212,1.60218709,4021.6,4021.5,1.60345]
[1758917906905,1.15494709,4021.6,4021.5,1.60345]
[1758917907412,1.60218709,4021.6,4021.5,1.60345]
[1758917907911,1.15494709,4021.6,4021.5,1.60345]
[1758917908208,1.60218709,4021.6,4021.5,1.60345]
[1758917909113,1.84158709,4021.6,4021.5,1.26085]
[1758917909612,1.84158709,4021.6,4021.5,1.60345]
[1758917909809,1.84158709,4021.6,4021.5,0.089]
[1758917910511,1.84158709,4021.6,4021.5,0.3341]
[1758917911205,1.84158709,4021.6,4021.5,1.34945]
[1758917912409,1.84158709,4021.6,4021.5,1.00685]
[1758917912614,1.84158709,4021.6,4021.5,1.34945]
[1758917913511,1.84158709,4021.6,4021.5,1.00685]
[1758917914013,1.84158709,4021.6,4021.5,1.26085]
[1758917914514,1.84158709,4021.6,4021.5,1.60345]
[1758917915107,1.84158709,4021.6,4021.5,1.26085]
[1758917915507,1.39434709,4021.6,4021.5,1.26085]
[1758917915711,1.84158709,4021.6,4021.5,1.60345]
[1758917916611,3.27337819,4021.6,4021.5,0.343]
[1758917916908,3.27337819,4021.6,4021.5,0.79025]
[1758917917719,1.39434709,4021.6,4021.5,1.60345]
[1758917917902,1.15494709,4021.6,4021.5,3.0352411]
[1758917918107,0.54404709,4021.6,4021.5,8.1051411]
[1758917918411,1.29751,4021.9,4021.8,0.91782]
[1758917918608,1.81590964,4021.9,4021.8,1.17182]
[1758917919114,1.29752,4021.8,4021.7,3.2078]
[1758917919316,1.81591964,4021.8,4021.7,3.90903]
[1758917919616,1.81591964,4021.8,4021.7,3.4618]
[1758917920018,1.36869964,4021.8,4021.7,4.15413]
[1758917920313,1.81591964,4021.8,4021.7,3.7069]
[1758917920615,1.36869964,4021.8,4021.7,0.7246]
[1758917920811,1.36869964,4021.8,4021.7,0.254]
[1758917920812,2.80049074,4021.8,4021.7,0.254]
[1758917921018,3.24771074,4021.8,4021.7,0.254]
[1758917921318,0.44724,4021.6,4021.2,3.21100659]
[1758917921623,2.80049074,4021.8,4019.5,0.1492]
[1758917921624,0.4808,4020.4,4019.5,0.1492]
[1758917921920,0.44741,4020.1,4020.0,0.1492]
[1758917922115,0.44746,4019.6,4019.5,0.1492]
[1758917922318,0.96621883,4019.6,4019.5,0.5028]
[1758917922617,0.96912082,4019.6,4019.5,0.5051493]
[1758917923220,0.96912082,4019.6,4019.5,0.7508493]
[1758917923610,0.52166082,4019.6,4019.5,0.9765493]
[1758917923916,0.00290199,4019.6,4019.5,4.4383493]
[1758917924311,0.00290199,4019.6,4019.5,9.4383493]
[1758917926619,0.00290199,4019.6,4019.5,4.4383493]
[1758917926814,0.00290199,4019.6,4019.5,9.4383493]
[1758917931318,3.2078,4020.8,4020.5,0.3884]
[1758917931517,1.00664772,4020.7,4020.6,0.825]
[1758917932526,1.00866264,4020.7,4020.6,0.825]
[1758917932717,0.56132264,4020.7,4020.6,1.079]
[1758917932916,0.00201492,4020.7,4020.6,1.079]
[1758917933718,0.00201492,4020.7,4020.6,0.825]
[1758917933921,0.00201492,4020.7,4020.6,1.079]
[1758917936825,0.00201492,4020.7,4020.6,1.52635]
[1758917938223,0.44727,4021.3,4021.2,0.825]
[1758917938520,0.44727,4021.3,4021.2,1.079]
[1758917939127,0.44930252,4021.3,4021.2,1.079]
[1758917939329,0.00203252,4021.3,4021.2,1.52629]
[1758917939520,0.44930252,4021.3,4021.2,1.079]
[1758917940227,0.00203252,4021.3,4021.2,1.52629]
[1758917940621,0.44930252,4021.3,4021.2,1.52629]
[1758917940822,0.44930252,4021.3,4021.2,1.079]
[1758917941528,0.00203252,4021.3,4021.2,1.52629]
[1758917943125,0.00203252,4021.3,4021.2,6.52629]
[1758917943330,0.44723,4021.8,4021.7,0.825]
[1758917943533,0.44723,4021.8,4021.7,1.52623]
[1758917943730,0.44723,4021.8,4021.7,1.079]
[1758917944434,0.44954199,4021.8,4021.7,1.079]
[1758917944631,0.44954199,4021.8,4021.7,1.52623]
[1758917944826,0.00231199,4021.8,4021.7,1.52623]
[1758917945529,0.44953199,4021.8,4021.7,0.825]
[1758917945730,0.44953199,4021.8,4021.7,1.079]
[1758917946134,1.02855712,4021.8,4021.7,1.079]
[1758917946540,0.58133712,4021.8,4021.7,1.079]
[1758917946836,1.02855712,4021.8,4021.7,1.079]
[1758917947137,0.44953199,4021.8,4021.7,1.079]
[1758917947547,0.00231199,4021.8,4021.7,1.52623]
[1758917947726,1.02852764,4021.8,4021.7,1.079]
[1758917949338,0.58130764,4021.8,4021.7,1.52623]
[1758917949935,0.00231199,4021.8,4021.7,1.52623]
[1758917950438,0.58142959,4021.8,4021.7,1.079]
[1758917950938,0.58142959,4021.8,4021.7,1.52623]
[1758917951139,0.00231199,4021.8,4021.7,1.52623]
[1758917951341,0.58143592,4021.8,4021.7,1.52623]
[1758917951640,1.02865592,4021.8,4021.7,1.52623]
[1758917952142,0.44953199,4021.8,4021.7,1.079]
[1758917952340,1.02875393,4021.8,4021.7,1.52623]
[1758917952742,0.58153393,4021.8,4021.7,1.52623]
[1758917953138,1.02875393,4021.8,4021.7,1.52623]
[1758917953442,0.58153393,4021.8,4021.7,1.52623]
[1758917954144,0.00231199,4021.8,4021.7,4.73403]
[1758917955435,0.44953199,4021.8,4021.7,0.825]
[1758917955636,0.44953199,4021.8,4021.7,1.079]
[1758917956133,1.02666892,4021.8,4021.7,1.079]
[1758917956335,1.02666892,4021.8,4021.7,0.825]
[1758917956540,1.02666892,4021.8,4021.7,0.3536]
[1758917958847,1.02666892,4021.8,4021.7,0.5811]
[1758917959043,1.02666892,4021.8,4021.7,0.3536]
[1758917959444,0.44724,4021.6,4021.5,0.5019]
[1758917959739,1.27837693,4021.6,4021.5,0.5019]
[1758917960649,0.4473,4021.1,4020.5,0.1427]
[1758917960947,4.48623693,4021.1,4020.5,0.1427]
[1758917961138,9.48623693,4021.1,4020.5,0.1427]
[1758917962142,0.39400435,4021.1,4021.0,6.04791]
[1758917962342,0.44723,4021.7,4021.6,0.4579]
[1758917962550,0.44723,4021.7,4021.6,0.8171]
[1758917962745,0.44723,4021.7,4021.6,0.3592]
[1758917963146,0.44723,4021.7,4021.6,0.5867]
[1758917963350,0.44723,4021.7,4021.6,0.8171]
[1758917963951,0.44723,4021.7,4021.6,0.5867]
[1758917964145,0.44723,4021.7,4021.6,0.3592]
[1758917964853,0.44723,4021.7,4021.6,0.5867]
[1758917965050,0.44724,4021.6,4021.5,0.4951]
[1758917965252,9.51335802,4021.6,4021.5,0.4951]
[1758917965650,50.31335802,4021.6,4021.5,0.4951]
[1758917966553,44.45504,4021.6,4021.5,0.953]
[1758917967650,44.45504,4021.6,4021.5,0.7226]
[1758917967847,49.70904,4021.6,4021.5,0.4951]
[1758917968254,44.70904,4021.6,4021.5,0.7226]
[1758917968956,49.30509233,4021.6,4020.5,0.1427]
[1758917969154,3.65515,4020.6,4020.5,0.1427]
[1758917969348,3.90915,4020.6,4020.5,0.1427]
[1758917970261,0.44741,4020.1,4020.0,0.3702]
[1758917970659,0.44741,4020.1,4020.0,0.1427]
[1758917970859,0.44741,4020.1,4020.0,0.6006]
[1758917971155,0.44741,4020.1,4020.0,0.9598]
[1758917973460,3.2078,4020.6,4020.0,0.9598]
[1758917973657,3.90915,4020.6,4020.5,0.953]
[1758917974063,4.47781995,4020.6,4020.5,0.953]
[1758917974264,4.47781995,4020.6,4020.5,0.7226]
[1758917974456,4.47781995,4020.6,4020.5,0.4951]
[1758917975462,4.47781995,4020.6,4020.5,0.953]
[1758917978169,4.22381995,4020.6,4020.5,0.953]
[1758917979972,3.77646995,4020.6,4020.5,0.953]
[1758917980172,1.01601995,4020.6,4020.5,0.953]
[1758917985481,0.56866995,4020.6,4020.5,6.40036]
[1758917985673,1.01601995,4020.6,4020.5,5.953]
[1758917986990,1.01601995,4020.6,4020.5,6.207]
[1758917987479,0.56866995,4020.6,4020.5,6.65436]
[1758917987681,1.01601995,4020.6,4020.5,6.65436]
[1758917987975,0.48859745,4020.6,4020.5,6.65436]
[1758917988176,0.67746,4021.4,4021.3,0.3741]
[1758917988372,0.67746,4021.4,4021.3,0.6005]
[1758917988373,1.15446,4021.4,4021.3,0.6005]
[1758917989182,0.92126,4021.4,4021.3,0.8308]
[1758917990983,1.15446,4021.4,4021.3,0.3741]
[1758917991983,1.1545,4021.1,4021.0,0.512]
[1758917992375,1.1545,4021.1,4021.0,0.7384]
[1758917992884,0.9213,4021.1,4021.0,0.7384]
[1758917993083,0.9213,4021.1,4021.0,0.9687]
[1758917993579,0.44735,4020.6,4020.5,0.1359]
[1758917993886,0.44735,4020.6,4020.0,0.5994]
[1758917993887,0.92141,4020.1,4020.0,0.5994]
[1758917994382,0.92141,4020.1,4020.0,0.9735]
[1758917995783,3.6818,4020.6,4020.5,0.9687]
[1758917995983,4.12915,4020.6,4020.5,0.9687]
[1758917996786,3.88535,4020.6,4020.5,0.9687]
[1758917996982,4.12915,4020.6,4020.5,0.9687]
[1758917999780,3.65515,4020.6,4020.5,0.9687]
[1758918000178,4.22096629,4020.6,4020.5,0.9687]
[1758918000489,4.45116629,4020.6,4020.5,0.9687]
[1758918000887,4.22096629,4020.6,4020.5,0.9687]
[1758918003085,4.45116629,4020.6,4020.5,0.9687]
[1758918003277,4.92816629,4020.6,4020.5,0.3741]
[1758918003483,0.92141,4020.1,4020.0,0.5994]
[1758918003679,1.15463,4019.9,4019.8,3.2078]
[1758918003886,0.92146,4019.6,4019.5,0.5123493]
[1758918004181,1.48727629,4019.6,4019.5,0.7387493]
[1758918005985,1.71427629,4019.6,4019.5,0.7387493]
[1758918006184,1.71427629,4019.6,4019.5,0.5123493]
[1758918006690,1.71427629,4019.6,4019.5,0.0023493]
[1758918006890,1.71427629,4019.6,4019.5,0.3741493]
[1758918009584,1.71427629,4019.6,4019.5,0.0023493]
[1758918009788,4.92207629,4019.6,4019.5,0.0023493]
[1758918010183,4.92207629,4019.6,4019.5,0.5127493]
[1758918012294,4.92207629,4019.6,4019.5,0.7388493]
[1758918012792,3.77361629,4019.6,4019.5,0.9791493]
[1758918013693,3.77361629,4019.6,4019.5,1.4266193]
[1758918013890,4.22107629,4019.6,4019.5,0.9791493]
[1758918014193,4.45877629,4019.6,4019.5,0.9791493]
[1758918015192,4.68937629,4019.6,4019.5,0.9791493]
[1758918015994,1.48157629,4019.6,4019.5,0.9791493]
[1758918016290,1.70617629,4019.6,4019.5,0.3741493]
[1758918016588,1.70617629,4019.6,4019.5,0.0023493]
[1758918020684,6.70617629,4019.6,4019.5,0.0023493]
[1758918020890,1.14044,4018.9,4018.8,3.8105]
[1758918021394,0.91584,4018.9,4018.8,3.8105]
[1758918021795,0.91821386,4018.9,4018.8,3.81321688]
[1758918022290,1.03298522,4018.9,4018.8,4.50106688]
[1758918022484,0.56468522,4018.9,4018.8,4.50106688]
[1758918022686,0.00237386,4018.9,4018.8,4.50106688]
[1758918024390,0.00237386,4018.9,4018.8,4.75506688]
[1758918025493,0.44991386,4018.9,4018.8,4.75506688]
[1758918026598,0.44991386,4018.9,4018.8,4.30751688]
[1758918027099,1.48077047,4018.9,4018.8,4.05351688]
[1758918027293,1.48077047,4018.9,4018.8,4.30751688]
[1758918029201,1.48077047,4018.9,4018.8,4.75506688]
[1758918029396,1.48077047,4018.9,4018.8,4.30751688]
[1758918030203,1.48077047,4018.9,4018.8,1.09971688]
[1758918030391,1.25017047,4018.9,4018.8,1.09971688]
[1758918032603,2.68400267,4018.9,4018.8,1.09971688]
[1758918033102,2.68400267,4018.9,4018.8,1.54726688]
[1758918033404,2.68400267,4018.9,4018.8,1.09971688]
[1758918034904,0.56493047,4018.9,4018.8,1.54726688]
[1758918035094,1.01247047,4018.9,4018.8,1.09971688]
[1758918035501,2.68400267,4018.9,4018.8,1.09971688]
[1758918035703,2.91460267,4018.9,4018.8,1.09971688]
[1758918036001,2.91460267,4018.9,4018.8,0.84571688]
[1758918036204,0.2246,4018.3,4018.0,0.4964]
[1758918036507,2.5743622,4018.1,4018.0,0.3821]
[1758918036701,2.91231881,4018.1,4018.0,0.3821]
[1758918036901,2.91231881,4018.1,4018.0,0.7406]
[1758918037299,2.46468881,4018.1,4018.0,0.98384364]
[1758918037607,1.01018661,4018.1,4018.0,1.43148364]
[1758918039307,1.01018661,4018.1,4018.0,1.68548364]
[1758918039708,1.01018661,4018.1,4018.0,1.23784364]
[1758918040708,1.01018661,4018.1,4018.0,1.68548364]
[1758918041112,0.56255661,4018.1,4018.0,1.68548364]
[1758918041319,0.68531,4018.3,4018.2,0.843]
[1758918041505,1.24184532,4018.3,4018.2,0.843]
[1758918042309,1.24184532,4018.3,4018.2,1.29062]
[1758918042509,0.55653532,4018.3,4018.2,1.29062]
[1758918042813,3.65538,4018.6,4018.5,0.9678]
[1758918043012,4.67596096,4018.6,4018.5,0.9678]
[1758918043317,4.67596096,4018.6,4018.5,1.41539]
[1758918043706,3.76418096,4018.6,4018.5,1.41539]
[1758918043912,0.00237386,4018.9,4018.8,1.27305]
[1758918044106,0.00237386,4018.9,4018.8,1.52705]
[1758918044311,0.55873006,4018.9,4018.8,1.52705]
[1758918044908,1.00627006,4018.9,4018.8,1.52705]
[1758918047820,1.47047006,4018.9,4018.8,1.0795]
[1758918048720,1.00627006,4018.9,4018.8,1.52705]
[1758918048918,1.00627006,4018.9,4018.8,1.27305]
[1758918049115,1.00627006,4018.9,4018.8,1.52705]
[1758918049519,1.24717006,4018.9,4018.8,1.52705]
[1758918049713,1.24717006,4018.9,4018.8,1.0795]
[1758918050421,1.68277006,4018.9,4018.8,0.6096]
[1758918050621,1.47047006,4018.9,4018.8,0.8492]
[1758918050918,0.55873006,4018.9,4018.8,1.52705]
[1758918051121,1.00627006,4018.9,4018.8,1.52705]
[1758918052213,0.55873006,4018.9,4018.8,1.52705]
[1758918052413,3.6741,4019.7,4019.5,0.3556]
[1758918052414,3.2078,4019.7,4019.5,0.3556]
[1758918052619,0.68836,4019.6,4019.5,0.9678]
[1758918053514,0.69054441,4019.6,4019.5,0.9678]
[1758918054726,0.69054441,4019.6,4019.5,1.41527]
[1758918054920,0.69054441,4019.6,4019.5,0.9678]
[1758918055424,0.69054441,4019.6,4019.5,1.41527]
[1758918055618,0.00218441,4019.6,4019.5,4.62307]
[1758918056121,0.00218441,4019.6,4019.5,4.1756]
[1758918056327,0.00218441,4019.6,4019.5,4.62307]
[1758918056527,0.46638441,4019.6,4019.5,4.87707]
[1758918057617,0.00218441,4019.6,4019.5,4.87707]
[1758918059917,0.24308441,4019.6,4019.5,4.87707]
[1758918060126,0.91384441,4019.6,4019.5,4.1756]
[1758918060325,0.91384441,4019.6,4019.5,4.4296]
[1758918060719,0.91384441,4019.6,4019.1,0.3556]
[1758918060720,0.91171,4019.2,4019.1,0.3556]
[1758918061027,1.12401,4019.2,4019.1,0.8492]
[1758918061229,0.91171,4019.2,4019.1,1.0795]
[1758918061929,0.2409,4019.2,4019.1,1.52702]
[1758918062623,0.44749,4019.4,4019.3,0.2303]
[1758918062924,0.44749,4019.4,4019.3,0.8255]
[1758918063129,0.68839,4019.4,4019.3,0.8255]
[1758918064231,2.91024437,4019.4,4019.3,0.3556]
[1758918064526,3.45535206,4019.4,4019.3,0.3556]
[1758918066132,3.45535206,4019.4,4019.3,0.5952]
[1758918067023,0.78600769,4019.4,4019.3,1.2644]
[1758918067225,0.54510769,4019.4,4019.3,1.2644]
[1758918067427,0.99259769,4019.4,4019.3,1.2644]
[1758918068225,0.99259769,4019.4,4019.3,0.8169]
[1758918068530,0.99259769,4019.4,4019.3,1.2644]
[1758918069130,0.99259769,4019.4,4019.3,0.8169]
[1758918069627,0.54510769,4019.4,4019.3,1.2644]
[1758918069928,0.99259769,4019.4,4019.3,1.2644]
[1758918070720,0.99259769,4019.4,4019.3,0.8169]
[1758918070721,1.22499769,4019.4,4019.3,0.8169]
[1758918071025,1.22499769,4019.4,4019.3,1.0709]
[1758918071227,1.46389769,4019.4,4019.3,1.0709]
[1758918073734,1.22499769,4019.4,4019.3,1.0709]
[1758918074029,1.22499769,4019.4,4019.3,1.5184]
[1758918074229,1.22499769,4019.4,4019.3,1.2644]
[1758918074431,1.22499769,4019.4,4019.3,1.5184]
[1758918074631,1.22499769,4019.4,4019.3,1.0709]
[1758918077026,1.45779769,4019.4,4019.3,1.0709]
[1758918078030,1.66269769,4019.4,4019.3,0.5952]
[1758918078235,1.66269769,4019.4,4019.3,0.6096]
[1758918078439,1.66269769,4019.4,4019.3,0.837]
[1758918078637,1.45779769,4019.4,4019.3,0.837]
[1758918078842,1.45779769,4019.4,4019.3,1.0558]
[1758918080140,3.44895206,4019.4,4019.3,0.837]
[1758918080445,3.44895206,4019.4,4019.3,0.6096]
[1758918080639,3.44895206,4019.4,4019.3,0.837]
[1758918081845,3.24405206,4019.4,4019.3,0.837]
[1758918082145,3.44895206,4019.4,4019.3,0.837]
[1758918082743,3.44895206,4019.4,4019.3,0.583]
[1758918082941,3.44895206,4019.4,4019.3,0.3556]
[1758918083244,1.45779769,4019.4,4019.3,0.8018]
[1758918083545,0.99259769,4019.4,4019.3,0.8018]
[1758918085249,1.22659769,4019.4,4019.3,0.8018]
[1758918085650,0.54510769,4019.4,4019.3,1.2493]
[1758918085949,0.99259769,4019.4,4019.3,0.8018]
[1758918086248,1.22659769,4019.4,4019.3,0.8018]
[1758918086448,1.22659769,4019.4,4019.3,1.2493]
[1758918087551,0.99259769,4019.4,4019.3,1.2493]
[1758918088948,0.99259769,4019.4,4019.3,0.8018]
[1758918089255,1.22659769,4019.4,4019.3,0.8018]
[1758918089856,1.22659769,4019.4,4019.3,1.2493]
[1758918090456,1.22659769,4019.4,4019.3,0.8018]
[1758918090648,1.45939769,4019.4,4019.3,0.8018]
[1758918090848,1.45939769,4019.4,4019.3,1.0548]
[1758918091150,0.77910769,4019.4,4019.3,1.5023]
[1758918091453,1.22659769,4019.4,4019.3,1.5023]
[1758918091950,1.22659769,4019.4,4019.3,1.0548]
[1758918092155,1.45939769,4019.4,4019.3,1.0548]
[1758918097150,0.99259769,4019.4,4019.3,1.5023]
[1758918097353,1.22659769,4019.4,4019.3,1.0548]
[1758918098060,1.45939769,4019.4,4019.3,1.0548]
[1758918101458,0.44752,4019.1,4019.0,3.3501]
[1758918101657,0.44752,4019.1,4018.5,0.1423]
[1758918101658,1.11927,4018.6,4018.5,3.5775]
[1758918101851,1.66437769,4018.6,4018.5,3.5775]
[1758918102254,1.45947769,4018.6,4018.5,4.1779]
[1758918102849,1.45947769,4018.6,4018.5,3.5552]
[1758918102850,1.65247769,4018.6,4018.5,3.5552]
[1758918103055,1.09693,4018.1,4018.0,3.94904364]
[1758918103262,3.23529206,4018.1,4018.0,4.39064364]
[1758918103454,0.54510769,4018.1,4018.0,4.83828364]
[1758918103654,0.44756,4018.7,4018.6,0.789]
[1758918103850,0.44756,4018.7,4018.6,3.9968]
[1758918104056,1.00157103,4018.7,4018.6,3.9968]
[1758918104856,1.23237103,4018.7,4018.6,3.9968]
[1758918105760,1.45787103,4018.7,4018.6,3.9968]
[1758918105965,1.65087103,4018.7,4018.6,0.789]
[1758918107059,1.45787103,4018.7,4018.6,0.789]
[1758918108558,0.55401103,4018.7,4018.6,1.23657]
[1758918108966,0.44754,4018.9,4018.8,0.789]
[1758918109164,0.99603341,4018.9,4018.8,1.042]
[1758918109472,0.99603341,4018.9,4018.8,1.48955]
[1758918109670,0.54849341,4018.9,4018.8,1.48955]
[1758918110455,0.44753,4019.1,4019.0,1.37803]
[1758918110655,0.44753,4019.1,4019.0,1.63103]
[1758918110863,0.99135369,4019.1,4019.0,1.63103]
[1758918111767,0.99135369,4019.1,4019.0,4.83883]
[1758918112174,0.99135369,4019.1,4019.0,4.58583]
[1758918112469,0.99135369,4019.1,4019.0,4.83883]
[1758918112766,0.54382369,4019.1,4019.0,4.83883]
[1758918113370,0.54382369,4019.1,4019.0,6.27222918]
[1758918113581,0.23298441,4019.6,4019.5,0.9305]
[1758918113870,1.22423914,4019.6,4019.5,1.1835]
[1758918114664,0.99343914,4019.6,4019.5,1.1835]
[1758918115174,0.99343914,4019.6,4019.5,4.3913]
[1758918115769,1.22423914,4019.6,4019.5,4.3913]
[1758918118566,0.54597914,4019.6,4019.5,4.3913]
[1758918119072,0.99343914,4019.6,4019.5,4.3913]
[1758918119569,0.99343914,4019.6,4019.5,4.83877]
[1758918121268,1.44973914,4019.6,4019.5,4.1383]
[1758918121470,2.88313832,4019.6,4019.5,4.3913]
[1758918121671,2.88313832,4019.6,4019.5,4.83877]
[1758918122075,2.43567832,4019.6,4019.5,4.83877]
[1758918122475,2.21017832,4019.6,4019.5,4.83877]
[1758918122674,2.65763832,4019.6,4019.5,4.83877]
[1758918122977,1.22423914,4019.6,4019.5,4.83877]
[1758918123181,0.77677914,4019.6,4019.5,4.83877]
[1758918123476,1.22423914,4019.6,4019.5,4.83877]
[1758918123676,0.54597914,4019.6,4019.5,4.83877]
[1758918124271,0.99343914,4019.6,4019.5,4.83877]
[1758918124770,0.54597914,4019.6,4019.5,4.83877]
[1758918125467,2.88313832,4019.6,4019.5,4.3913]
[1758918125671,2.88313832,4019.6,4019.5,4.83877]
[1758918125966,1.44973914,4019.6,4019.5,4.3913]
[1758918127074,1.44973914,4019.6,4019.5,4.83877]
[1758918130683,1.00227914,4019.6,4019.5,4.83877]
[1758918130882,0.54597914,4019.6,4019.5,4.83877]
[1758918131088,0.44742,4020.1,4020.0,1.34592]
[1758918131282,0.4474,4020.2,4020.1,1.2112]
[1758918131486,0.4474,4020.2,4020.1,1.4642]
[1758918131684,0.667,4020.2,4020.1,1.4642]
[1758918132085,0.66964139,4020.2,4020.1,1.0168]
[1758918135092,0.66964139,4020.2,4020.1,1.46421]
[1758918135785,0.66964139,4020.2,4020.1,1.0168]
[1758918136590,0.66964139,4020.2,4020.1,1.46421]
[1758918136889,0.66964139,4020.2,4020.1,1.0168]
[1758918139280,0.00264139,4020.2,4020.1,1.46421]
[1758918140285,2.33134057,4020.2,4020.1,0.7638]
[1758918140491,2.51714057,4020.2,4020.1,1.0168]
[1758918140786,1.08115,4019.7,4019.6,0.2203]
[1758918141094,2.51454918,4019.7,4019.6,0.8206]
[1758918142192,2.51454918,4019.7,4019.6,0.3473]
[1758918142484,1.08116,4019.6,4019.5,3.6966]
[1758918143192,1.62232257,4019.6,4019.5,3.6966]
[1758918143992,1.6223526,4019.6,4019.5,3.6966]
[1758918144388,0.4479,4019.1,4019.0,3.8026]
[1758918144586,1.4366126,4019.1,4019.0,4.0556]
[1758918144782,1.4366126,4019.1,4019.0,4.4029]
[1758918145291,1.6224126,4019.1,4019.0,0.9621]
[1758918145889,1.6224126,4019.1,4019.0,0.7091]
[1758918146085,1.6224126,4019.1,4019.0,0.4888]
[1758918146286,1.6224126,4019.1,4019.0,0.7091]
[1758918146485,1.4366126,4019.1,4019.0,0.7091]
[1758918148695,1.4366126,4019.1,4019.0,0.9421]
[1758918148890,0.5411926,4019.1,4019.0,1.38963]
[1758918149094,3.87385,4019.7,4019.6,0.4533]
[1758918149395,4.64384659,4019.7,4019.6,0.8006]
[1758918150490,3.74849659,4019.7,4019.6,0.8006]
[1758918150793,3.74849659,4019.7,4019.6,1.24806]
[1758918152089,0.98814659,4019.7,4019.6,0.8006]
[1758918152496,0.98814659,4019.7,4019.6,1.24806]
[1758918152697,0.54069659,4019.7,4019.6,1.50106]
[1758918153594,3.21044139,4020.2,4020.1,1.24801]
[1758918153795,3.74864215,4020.2,4020.1,1.50101]
[1758918154195,0.54084215,4020.2,4020.1,1.50101]
[1758918155092,0.98824215,4020.2,4020.1,1.50101]
[1758918156092,0.54084215,4020.2,4020.1,1.50101]
[1758918156399,0.00264139,4020.2,4020.1,1.50101]
[1758918157497,0.45004139,4020.2,4020.1,1.50101]
[1758918157886,0.45004139,4020.2,4020.1,1.0536]
[1758918158398,0.45004139,4020.2,4020.1,1.50101]
[1758918161497,0.00264139,4020.2,4020.1,1.50101]
[1758918165397,0.44733,4020.8,4020.7,1.21233]
[1758918165599,0.4473,4021.1,4021.0,1.34281]
[1758918165798,0.9847241,4021.1,4021.0,1.59581]
[1758918166493,0.98695019,4021.1,4021.0,1.598595]
[1758918166997,1.19795019,4021.1,4021.0,1.151285]
[1758918167202,1.40955019,4021.1,4021.0,1.151285]
[1758918168903,1.40955019,4021.1,4021.0,1.598595]
[1758918169108,1.19795019,4021.1,4021.0,1.598595]
[1758918170503,0.66052609,4021.1,4021.0,1.598595]
[1758918171005,0.66052609,4021.1,4021.0,1.151285]
[1758918171201,0.66052609,4021.1,4021.0,0.898285]
[1758918171505,0.66052609,4021.1,4021.0,1.151285]
[1758918172403,0.66052609,4021.1,4021.0,1.598595]
[1758918173606,0.66052609,4021.1,4021.0,0.898285]
[1758918173907,0.66052609,4021.1,4021.0,1.598595]
[1758918175300,0.00222609,4021.1,4021.0,1.598595]
[1758918177401,0.44952609,4021.1,4021.0,0.898285]
[1758918177595,0.66052609,4021.1,4021.0,1.151285]
[1758918178606,0.66052609,4021.1,4021.0,1.598595]
[1758918178908,0.21322609,4021.1,4021.0,1.598595]
[1758918179210,0.00222609,4021.1,4021.0,1.598595]
[1758918179704,1.04632609,4021.1,4021.0,0.444385]
[1758918179910,6.58373146,4021.1,4021.0,0.002785]
[1758918180408,9.79153146,4021.1,4021.0,0.002785]
[1758918184109,0.86999,4020.3,4020.2,0.3111]
[1758918184302,1.04421,4020.1,4020.0,3.6583]
[1758918184498,1.04421,4020.1,4020.0,0.4505]
[1758918184499,1.58161537,4020.1,4020.0,0.4505]